fUSD/lending_fUSD_20240627
["ID","MTS","AMOUNT","RATE_DAILY","PERIOD"]
[330488724,1719497132561,-2337.39,0.00043835,120]
[330488725,1719497132599,-814.64,0.00043835,120]
[330488726,1719497132636,-1150.0,0.00043835,120]
[330488727,1719497132675,-500.0,0.00043835,120]
[330488728,1719497132714,-881.05,0.00043835,120]
[330488729,1719497132754,-1839.45,0.00043835,120]
[330488730,1719497132792,-500.0,0.00043835,120]
[330488731,1719497132832,-2748.43,0.00043835,120]
[330488732,1719497132870,-1545.12,0.00043835,120]
[330488733,1719497132911,-1716.97,0.00043835,120]
[330488734,1719497132950,-501.5,0.00043835,120]
[330488735,1719497132988,-556.1,0.00043835,120]
[330488736,1719497133028,-3849.88,0.00043835,120]
[330488737,1719497133292,-579.43,0.00043835,120]
[330488738,1719497133334,-1191.9,0.00043835,120]
[330488739,1719497133373,-500.0,0.00043835,120]
[330488740,1719497133412,-1088.54,0.00043835,120]
[330488741,1719497133455,-270.37609489,0.00043835,120]
[330488742,1719497133496,-500.0,0.00043835,120]
[330488743,1719497133537,-500.0,0.00043835,120]
[330488744,1719497133579,-500.0,0.00043835,120]
[330488745,1719497133622,-2418.2,0.00043835,120]
[330488746,1719497133664,-500.0,0.00043835,120]
[330488747,1719497133706,-2054.01,0.00043835,120]
[330488748,1719497133748,-1706.46,0.00043835,120]
[330488749,1719497133791,-1474.89,0.00043835,120]
[330488750,1719497133834,-726.76,0.00043835,120]
[330488751,1719497133877,-2609.74,0.00043835,120]
[330488752,1719497133922,-9422.25,0.00043835,120]
[330488753,1719497133964,-500.0,0.00043835,120]
[330488754,1719497134004,-500.0,0.00043835,120]
[330488755,1719497134044,-500.0,0.00043835,120]
[330488756,1719497134084,-608.79,0.00043835,120]
[330488757,1719497134125,-1358.37,0.00043835,120]
[330488758,1719497134165,-500.0,0.00043835,120]
[330488759,1719497134205,-1540.4,0.00043835,120]
[330488760,1719497134243,-591.75,0.00043835,120]
[330488761,1719497134284,-1326.83,0.00043835,120]
[330488762,1719497134324,-2636.52,0.00043835,120]
[330488763,1719497134365,-500.0,0.00043835,120]
[330488764,1719497134404,-1220.3,0.00043835,120]
[330488765,1719497134449,-1358.81,0.00043835,120]
[330488766,1719497134493,-500.0,0.00043835,120]
[330488767,1719497134534,-1237.54,0.00043835,120]
[330488768,1719497134575,-936.92,0.00043835,120]
[330488769,1719497134615,-500.0,0.00043835,120]
[330488770,1719497134656,-850.97,0.00043835,120]
[330488771,1719497134703,-558.82,0.00043835,120]
[330488772,1719497134744,-500.0,0.00043835,120]
[330488773,1719497134788,-934.52,0.00043835,120]
[330488774,1719497134827,-495.10580574,0.00043835,120]
[330488775,1719497134866,-716.46,0.00043835,120]
[330488776,1719497134906,-2568.03,0.00043835,120]
[330488777,1719497134951,-1143.33,0.00043835,120]
[330488778,1719497134991,-500.0,0.00043835,120]
[330488779,1719497135031,-500.0,0.00043835,120]
[330488780,1719497135070,-1214.64,0.00043835,120]
[330488781,1719497135110,-2647.51,0.00043835,120]
[330488782,1719497135149,-500.0,0.00043835,120]
[330488783,1719497135188,-585.9,0.00043835,120]
[330488784,1719497135228,-641.46,0.00043835,120]
[330488785,1719497135271,-956.24,0.00043835,120]
[330488786,1719497135312,-980.1,0.00043835,120]
[330488787,1719497135351,-719.79,0.00043835,120]
[330488788,1719497135391,-500.0,0.00043835,120]
[330488789,1719497135430,-500.0,0.00043835,120]
[330488790,1719497135472,-561.61,0.00043835,120]
[330488791,1719497135512,-500.0,0.00043835,120]
[330488792,1719497135554,-500.0,0.00043835,120]
[330488793,1719497135598,-1501.87,0.00043835,120]
[330488794,1719497135642,-1849.52,0.00043835,120]
[330488795,1719497135687,-604.97323219,0.00043835,120]
[330488796,1719497135740,-500.0,0.00043835,120]
[330488797,1719497135785,-1578.75,0.00043835,120]
[330488798,1719497135826,-560.09,0.00043835,120]
[330488799,1719497135867,-2225.52,0.00043835,120]
[330488800,1719497135910,-1270.08,0.00043835,120]
[330488801,1719497135953,-610.74797525,0.00043835,120]
[330488802,1719497135996,-1715.37,0.00043835,120]
[330488803,1719497136038,-500.0,0.00043835,120]
[330488804,1719497136079,-547.48,0.00043835,120]
[330488805,1719497136124,-2578.37,0.00043835,120]
[330488806,1719497136167,-622.94,0.00043835,120]
[330488807,1719497136207,-2244.1,0.00043835,120]
[330488808,1719497136247,-500.0,0.00043835,120]
[330488809,1719497136289,-1236.39,0.00043835,120]
[330488810,1719497136337,-500.4,0.00043835,120]
[330488811,1719497136380,-500.0,0.00043835,120]
[330488812,1719497136423,-688.63,0.00043835,120]
[330488813,1719497136465,-571.89,0.00043835,120]
[330488814,1719497136509,-500.0,0.00043835,120]
[330488815,1719497136551,-1098.31,0.00043835,120]
[330488816,1719497136596,-1702.85,0.00043835,120]
[330488817,1719497136638,-1315.88,0.00043835,120]
[330488818,1719497136678,-726.04,0.00043835,120]
[330488819,1719497136722,-1410.22,0.00043835,120]
[330488820,1719497136768,-1701.76,0.00043835,120]
[330488821,1719497136809,-568.34,0.00043835,120]
[330488822,1719497136851,-14658.21,0.00043835,120]
[330488823,1719497136894,-2143.22,0.00043835,120]
[330488824,1719497136936,-436.72555204,0.00043835,120]
[330488825,1719497136983,-500.0,0.00043835,120]
[330488826,1719497137024,-1473.26,0.00043835,120]
[330488827,1719497137066,-2040.33,0.00043835,120]
[330488828,1719497137105,-776.23,0.00043835,120]
[330488829,1719497137148,-1618.87,0.00043835,120]
[330488830,1719497137189,-500.0,0.00043835,120]
[330488831,1719497137233,-633.05,0.00043835,120]
[330488832,1719497137275,-1531.22,0.00043835,120]
[330488833,1719497137316,-500.0,0.00043835,120]
[330488834,1719497137356,-2925.75,0.00043835,120]
[330488835,1719497137396,-1330.26,0.00043835,120]
[330488836,1719497137436,-1523.54,0.00043835,120]
[330488837,1719497137478,-500.0,0.00043835,120]
[330488838,1719497137518,-500.0,0.00043835,120]
[330488839,1719497137559,-2515.74,0.00043835,120]
[330488840,1719497137599,-1150.61,0.00043835,120]
[330488841,1719497137870,-1381.6,0.00043835,120]
[330488842,1719497137911,-500.0,0.00043835,120]
[330488843,1719497137953,-500.0,0.00043835,120]
[330488844,1719497137992,-500.0,0.00043835,120]
[330488845,1719497138031,-813.91,0.00043835,120]
[330488846,1719497138069,-500.0,0.00043835,120]
[330488847,1719497138109,-798.94,0.00043835,120]
[330488848,1719497138150,-500.0,0.00043835,120]
[330488849,1719497138191,-431.84707457,0.00043835,120]
[330488850,1719497138233,-500.0,0.00043835,120]
[330488851,1719497138273,-7480.86,0.00043835,120]
[330488852,1719497138312,-1554.71,0.00043835,120]
[330488853,1719497138350,-234.37409624,0.00043835,120]
[330488854,1719497138391,-1656.5,0.00043835,120]
[330488855,1719497138430,-1879.85,0.00043835,120]
[330488856,1719497138472,-500.0,0.00043835,120]
[330488857,1719497138513,-777.46,0.00043835,120]
[330488858,1719497138556,-500.0,0.00043835,120]
[330488859,1719497138600,-727.31,0.00043835,120]
[330488860,1719497138645,-2503.37,0.00043835,120]
[330488861,1719497138692,-2869.19,0.00043835,120]
[330488862,1719497138739,-500.0,0.00043835,120]
[330488863,1719497138783,-500.0,0.00043835,120]
[330488864,1719497138827,-3105.06,0.00043835,120]
[330488865,1719497138870,-500.0,0.00043835,120]
[330488866,1719497138913,-500.0,0.00043835,120]
[330488867,1719497138959,-1347.47,0.00043835,120]
[330488868,1719497139001,-500.0,0.00043835,120]
[330488869,1719497139043,-500.0,0.00043835,120]
[330488870,1719497139085,-1780.27,0.00043835,120]
[330488871,1719497139127,-500.0,0.00043835,120]
[330488872,1719497139169,-2876.79,0.00043835,120]
[330488873,1719497139213,-967.17,0.00043835,120]
[330488874,1719497139252,-2480.51,0.00043835,120]
[330488875,1719497139292,-502.69,0.00043835,120]
[330488876,1719497139333,-637.26,0.00043835,120]
[330488877,1719497139376,-559.06,0.00043835,120]
[330488878,1719497139416,-1115.49,0.00043835,120]
[330488879,1719497139459,-500.0,0.00043835,120]
[330488880,1719497139502,-764.85,0.00043835,120]
[330488881,1719497139546,-803.72,0.00043835,120]
[330488882,1719497139591,-1567.85,0.00043835,120]
[330488883,1719497139634,-2922.46,0.00043835,120]
[330488884,1719497139676,-500.0,0.00043835,120]
[330488885,1719497139718,-1061.44,0.00043835,120]
[330488886,1719497139764,-10673.44,0.00043835,120]
[330488887,1719497139808,-693.21,0.00043835,120]
[330488888,1719497139851,-1121.61,0.00043835,120]
[330488889,1719497139890,-500.0,0.00043835,120]
[330488890,1719497139929,-2514.02,0.00043835,120]
[330488891,1719497139974,-687.5,0.00043835,120]
[330488892,1719497140016,-591.6,0.00043835,120]
[330488893,1719497140060,-500.0,0.00043835,120]
[330488894,1719497140101,-500.0,0.00043835,120]
[330488895,1719497140142,-1443.52,0.00043835,120]
[330488896,1719497140180,-585.48,0.00043835,120]
[330488897,1719497140222,-1370.11,0.00043835,120]
[330488898,1719497140265,-2198.49,0.00043835,120]
[330488899,1719497140306,-725.24,0.00043835,120]
[330488900,1719497140348,-500.0,0.00043835,120]
[330488901,1719497140390,-1058.8,0.00043835,120]
[330488902,1719497140432,-1129.65,0.00043835,120]
[330488903,1719497140472,-500.0,0.00043835,120]
[330488904,1719497140512,-500.0,0.00043835,120]
[330488905,1719497140553,-2690.86,0.00043835,120]
[330488906,1719497140596,-757.03,0.00043835,120]
[330488907,1719497140637,-1815.64,0.00043835,120]
[330488908,1719497140681,-2506.27,0.00043835,120]
[330488909,1719497140723,-500.0,0.00043835,120]
[330488910,1719497140768,-582.13,0.00043835,120]
[330488911,1719497140813,-535.37,0.00043835,120]
[330488912,1719497140856,-1597.2,0.00043835,120]
[330488913,1719497140900,-7357.57,0.00043835,120]
[330488914,1719497140940,-500.0,0.00043835,120]
[330488915,1719497140983,-946.37,0.00043835,120]
[330488916,1719497141024,-862.73,0.00043835,120]
[330488917,1719497141067,-170.07091941,0.00043835,120]
[330488918,1719497141108,-3000.0,0.00043835,120]
[330488919,1719497141147,-1365.12,0.00043835,120]
[330488920,1719497141187,-3000.0,0.00043835,120]
[330488921,1719497141230,-3000.0,0.00043835,120]
[330488922,1719497141271,-3000.0,0.00043835,120]
[330488923,1719497141310,-3000.0,0.00043835,120]
[330488924,1719497141349,-500.0,0.00043835,120]
[330488925,1719497141391,-3000.0,0.00043835,120]
[330488926,1719497141433,-532.99,0.00043835,120]
[330488927,1719497141474,-1470.75,0.00043835,120]
[330488928,1719497141512,-3000.0,0.00043835,120]
[330488929,1719497141552,-3000.0,0.00043835,120]
[330488930,1719497141592,-2507.17,0.00043835,120]
[330488931,1719497141633,-3000.0,0.00043835,120]
[330488932,1719497141677,-3000.0,0.00043835,120]
[330488933,1719497141720,-3000.0,0.00043835,120]
[330488934,1719497141764,-523.86,0.00043835,120]
[330488935,1719497141807,-3000.0,0.00043835,120]
[330488936,1719497141849,-500.0,0.00043835,120]
[330488937,1719497141892,-3000.0,0.00043835,120]
[330488938,1719497141933,-3000.0,0.00043835,120]
[330488939,1719497141982,-3000.0,0.00043835,120]
[330488940,1719497142025,-3000.0,0.00043835,120]
[330488941,1719497142068,-589.07690704,0.00043835,120]
[330488942,1719497142110,-500.0,0.00043835,120]
[330488943,1719497142149,-743.41,0.00043835,120]
[330488944,1719497142190,-2477.72,0.00043835,120]
[330488945,1719497142472,-500.0,0.00043835,120]
[330488946,1719497142515,-784.71,0.00043835,120]
[330488947,1719497142556,-2202.7,0.00043835,120]
[330488948,1719497142600,-500.0,0.00043835,120]
[330488949,1719497142642,-500.0,0.00043835,120]
[330488950,1719497142684,-500.0,0.00043835,120]
[330488951,1719497142727,-1000.0,0.00043836,30]
[330488952,1719497142772,-150.0,0.00043865,30]
[330488953,1719497142812,-370.27180326,0.00043878,30]
[330488954,1719497142853,-180.40202542,0.00043878,30]
[330488955,1719497142892,-269.44573836,0.0004388,120]
[330488956,1719497142933,-1017.58556494,0.0004388,30]
[330488957,1719497142978,-150.0,0.0004388,30]
[330488958,1719497143019,-1000.0,0.00043886,30]
[330488959,1719497143061,-150.0,0.00043891,30]
[330488960,1719497143105,-370.27180326,0.00043924,30]
[330488961,1719497143149,-180.40202542,0.00043924,30]
[330488962,1719497143190,-150.0,0.00043933,30]
[330488963,1719497143232,-1000.0,0.00043937,30]
[330488964,1719497143276,-151.0,0.00043945,120]
[330488965,1719497143320,-150.0,0.00043949,120]
[330488966,1719497143363,-2332.0,0.00043951,99]
[330488967,1719497143404,-370.27180326,0.00043969,30]
[330488968,1719497143445,-180.40202542,0.00043969,30]
[330488969,1719497143495,-150.0,0.00043986,30]
[330488970,1719497143542,-1000.0,0.00043988,30]
[330488971,1719497143586,-353.37553773,0.00043997,40]
[330488972,1719497143628,-447.15390252,0.00043997,40]
[330488973,1719497143673,-700.34760073,0.00043997,40]
[330488974,1719497143716,-1105.65277059,0.00043997,40]
[330488975,1719497143764,-9755.82778264,0.00044,34]
[330488980,1719497340989,1000.0,0.00030955,30]
[330488981,1719497341493,1000.0,0.00030955,30]
[330488982,1719497432215,-625.33216649,0.00011098,2]
[330488984,1719497432224,-197.46491076,0.000137,2]
[330488986,1719497432234,-1462.49120899,0.000138,2]
[330489001,1719497432961,-985.05029101,0.000138,2]
[330489002,1719497432970,-180.0,0.00013899,2]
[330489003,1719497432979,-6119.3143,0.000139,2]
[330489004,1719497432988,-5680.3259,0.000139,2]
[330489005,1719497432998,-743.87923053,0.000139,2]
[330489006,1719497433007,-5000.0,0.00015,2]
[330489007,1719497433016,-153.057,0.00017636,2]
[330489008,1719497433026,-256.274,0.00017636,2]
[330489009,1719497433038,-3394.813,0.00017636,2]
[330489010,1719497433048,-1558.017,0.00017636,2]
[330489011,1719497433058,-1820.0,0.00017656,2]
[330489012,1719497433067,-359.0,0.00017656,2]
[330489013,1719497433076,-448.0,0.00017656,2]
[330489014,1719497433087,-812.0,0.00017656,2]
[330489015,1719497433096,-166.0,0.00017656,2]
[330489016,1719497433106,-166.479,0.00017656,2]
[330489017,1719497433117,-499.99,0.00017808,2]
[330489018,1719497433128,-1393.0,0.000183,3]
[330489019,1719497433138,-397.14,0.00018713,2]
[330489020,1719497433147,-154.02,0.00018743,2]
[330489021,1719497433157,-226.97665617,0.00019177,2]
[330489022,1719497433167,-226.97665617,0.00019177,2]
[330489023,1719497433176,-1649.349,0.00019948,2]
[330489024,1719497433186,-3022.81708204,0.00019964,2]
[330489025,1719497433195,-293.34975362,0.00019964,2]
[330489026,1719497433206,-485.05157163,0.00019964,2]
[330489027,1719497433216,-2769.86197833,0.0001999,2]
[330489028,1719497433227,-3033.08863685,0.0001999,2]
[330489029,1719497433236,-1910.51741181,0.0001999,2]
[330489030,1719497433248,-7999.44526518,0.0001999,2]
[330489031,1719497433259,-478.1956183,0.0001999,2]
[330489032,1719497433271,-5035.78168599,0.0001999,2]
[330489033,1719497433281,-361.04921953,0.0001999,2]
[330489034,1719497433290,-475.86272025,0.0002,2]
[330489035,1719497433299,-250.0,0.00020515,2]
[330489037,1719497433309,-250.0,0.00020528,2]
[330489039,1719497433318,-4899.46938695,0.00020577,2]
[330489041,1719497433330,-442.6822332,0.00020577,2]
[330489043,1719497433342,-3921.29546248,0.00020577,2]
[330489045,1719497433355,-10262.24023725,0.00020577,2]
[330489048,1719497433367,-1014.41575411,0.00020577,2]
[330489050,1719497433379,-530.14499983,0.00020577,2]
[330489053,1719497438251,-393.19965,0.00017596,2]
[330489056,1719497438264,-367.18970664,0.00017596,2]
[330489059,1719497438276,-930.56147123,0.00017596,2]
[330489062,1719497438287,-872.60064963,0.00017596,2]
[330489065,1719497438299,-1115.92565592,0.00017596,2]
[330489069,1719497438311,-3559.40086971,0.00017596,2]
[330489072,1719497438321,-2829.75192618,0.00020577,2]
[330489075,1719497438332,-1000.0,0.00020664,2]
[330489077,1719497438341,-150.0,0.0002069,2]
[330489079,1719497438351,-250.0,0.00020749,2]
[330489081,1719497438361,-170.85,0.00020956,2]
[330489083,1719497438370,-397.14,0.00020977,2]
[330489085,1719497438380,-1250.0,0.00021,2]
[330489087,1719497438390,-308.8,0.000214,2]
[330489088,1719497438400,-162.45,0.00021644,2]
[330489090,1719497438410,-1006.2,0.000218,2]
[330489092,1719497438419,-1006.2,0.000219,2]
[330489093,1719497438429,-2000.0,0.00022,2]
[330489094,1719497438438,-812.0,0.00022,10]
[330489095,1719497438447,-500.0,0.00022064,2]
[330489096,1719497438460,-500.0,0.00022198,2]
[330489097,1719497438470,-500.0,0.00022198,2]
[330489098,1719497438479,-500.0,0.00022198,2]
[330489099,1719497438489,-500.0,0.00022198,2]
[330489100,1719497438505,-500.0,0.00022198,2]
[330489101,1719497438515,-500.0,0.00022198,2]
[330489102,1719497438524,-159.50287503,0.00022372,2]
[330489103,1719497438534,-812.0,0.000225,10]
[330489104,1719497438544,-1106.38881,0.0002253,2]
[330489105,1719497438553,-308.8,0.00022685,2]
[330489106,1719497438563,-1006.2,0.0002276,2]
[330489107,1719497438573,-217.52694507,0.0002279,2]
[330489108,1719497438583,-2000.0,0.000228,2]
[330489109,1719497438593,-2000.0,0.000228,2]
[330489110,1719497438604,-1921.48161612,0.000228,2]
[330489115,1719497438804,-78.51838388,0.000228,2]
[330489116,1719497438814,-2000.0,0.000228,2]
[330489117,1719497438824,-2000.0,0.000228,2]
[330489118,1719497438834,-2000.0,0.000228,2]
[330489119,1719497438844,-2000.0,0.000228,2]
[330489120,1719497438856,-1006.2,0.0002286,2]
[330489121,1719497438866,-627.80845195,0.00022885,2]
[330489122,1719497438877,-627.8084519,0.00022886,2]
[330489123,1719497438887,-627.8084519,0.00022886,2]
[330489124,1719497438897,-627.8084519,0.00022887,2]
[330489125,1719497438907,-627.8084519,0.00022887,2]
[330489126,1719497438918,-627.8084519,0.00022888,2]
[330489127,1719497438928,-627.8084519,0.00022888,2]
[330489128,1719497438939,-627.8084519,0.00022889,2]
[330489129,1719497438949,-686.40062632,0.00022889,2]
[330489130,1719497438961,-322.64063138,0.00022889,2]
[330489131,1719497438972,-686.40062632,0.00022889,2]
[330489132,1719497438982,-686.40062632,0.00022889,2]
[330489133,1719497438991,-686.40062632,0.00022889,2]
[330489134,1719497439002,-627.8084519,0.00022889,2]
[330489135,1719497439012,-686.40062632,0.00022889,2]
[330489136,1719497439023,-541.12179712,0.0002289,2]
[330489137,1719497439043,-145.2788292,0.0002289,2]
[330489138,1719497439054,-413.91976396,0.0002289,2]
[330489139,1719497439295,-272.48086236,0.0002289,2]
[330489140,1719497439305,-206.76913737,0.0002289,2]
[330489141,1719497439317,-479.63148895,0.0002289,2]
[330489142,1719497439327,-202406.1213374,0.0002289,2]
[330489143,1719497439338,-7457.51635288,0.0002289,2]
[330489144,1719497439349,-3125.94448,0.0002289,2]
[330489145,1719497439362,-1181.43452972,0.0002289,2]
[330489146,1719497439372,-686.40062632,0.0002289,2]
[330489147,1719497439381,-172.28575093,0.0002289,2]
[330489148,1719497439396,-171.25042833,0.0002289,2]
[330489149,1719497439406,-627.8084519,0.0002289,2]
[330489150,1719497439416,-686.40062632,0.0002289,2]
[330489151,1719497439426,-552.62070963,0.0002289,3]
[330489152,1719497439436,-867.33264057,0.00022899,2]
[330489153,1719497439448,-1132.66735943,0.00022899,2]
[330489154,1719497439461,-2000.0,0.00022899,2]
[330489155,1719497439473,-191.0,0.000229,5]
[330489156,1719497439484,-2000.0,0.00022989,2]
[330489157,1719497439494,-7480.24,0.00022989,7]
[330489158,1719497439504,-7480.24,0.00022989,7]
[330489159,1719497439514,-6694.70601536,0.00022989,7]
[330489160,1719497439527,-785.53398464,0.00022989,7]
[330489161,1719497439537,-5884.4751991,0.00022989,7]
[330489162,1719497439554,-994.53623725,0.00022989,7]
[330489163,1719497439566,-317.28437691,0.00022989,7]
[330489164,1719497439578,-283.94418674,0.00022989,7]
[330489165,1719497439588,-85.96037641,0.00022989,7]
[330489166,1719497439600,-1093.39984685,0.00022989,7]
[330489167,1719497439612,-6300.87977674,0.00022989,7]
[330489168,1719497439622,-1262.37431322,0.00022989,7]
[330489169,1719497439634,-468.50164004,0.00022989,7]
[330489170,1719497439646,-4093.73668848,0.00022989,7]
[330489171,1719497439658,-1655.62735826,0.00022989,7]
[330489172,1719497439668,-7480.24,0.00022989,7]
[330489173,1719497439678,-1842.58688402,0.00022989,7]
[330489174,1719497439689,-2473.81855127,0.00022989,7]
[330489175,1719497439701,-633.93613904,0.00022989,7]
[330489176,1719497439715,-260.76677281,0.00022989,7]
[330489177,1719497439726,-311.72,0.00022989,7]
[330489178,1719497439740,-319.8,0.00022989,7]
[330489179,1719497439755,-1300.0,0.00022989,7]
[330489180,1719497439833,-337.61165286,0.00022989,7]
[330489181,1719497439845,-7480.24,0.00022989,7]
[330489182,1719497439857,-7480.24,0.00022989,7]
[330489183,1719497439866,-7480.24,0.00022989,7]
[330489184,1719497439876,-7480.24,0.00022989,7]
[330489185,1719497439886,-7480.24,0.00022989,7]
[330489186,1719497439895,-7480.24,0.00022989,7]
[330489187,1719497439905,-5898.11267183,0.00022989,7]
[330489192,1719497440596,-1582.12732817,0.00022989,7]
[330489193,1719497440606,-7480.24,0.00022989,7]
[330489194,1719497440616,-7480.24,0.00022989,7]
[330489195,1719497440626,-7480.24,0.00022989,7]
[330489196,1719497440638,-1514.71717235,0.00022989,7]
[330489197,1719497440755,-5021.01278894,0.00022989,7]
[330489200,1719497440767,-896.44327112,0.00022989,7]
[330489202,1719497440778,-48.06676759,0.00022989,7]
[330489204,1719497440787,-546.06445583,0.00022989,7]
[330489206,1719497440798,-679.93537239,0.00022989,7]
[330489208,1719497440809,-336.40607485,0.00022989,7]
[330489211,1719497440821,-5917.83409693,0.00022989,7]
[330489213,1719497440831,-7480.24,0.00022989,7]
[330489214,1719497440842,-7480.24,0.00022989,7]
[330489217,1719497440853,-7480.24,0.00022989,7]
[330489219,1719497440863,-7480.32773418,0.00022989,7]
[330489221,1719497440873,-40770.36053797,0.0002299,7]
[330489223,1719497440883,-152815.82384598,0.0002299,5]
[330489225,1719497440895,-367058.4049681,0.0002299,5]
[330489227,1719497440907,-14453.14132,0.0002299,5]
[330489229,1719497440919,-2225.25,0.0002299,5]
[330489231,1719497440932,-7914.03357572,0.0002299,5]
[330489234,1719497440943,-671.80019193,0.0002299,5]
[330489236,1719497440956,-746.96337419,0.0002299,5]
[330489237,1719497440968,-6081.14586414,0.0002299,5]
[330489251,1719497444138,-1863.66500164,0.0002299,5]
[330489252,1719497444150,-8706146.34861664,0.0002299,5]
[330489276,1719497448466,-1052.18028327,0.00021535,2]
[330489285,1719497448542,-435.06185678,0.00021535,2]
[330489286,1719497448553,-5150.20375795,0.00021535,2]
[330489287,1719497448564,-376387.23386908,0.0002299,5]
[330489288,1719497448577,-623.83321,0.0002299,5]
[330489289,1719497448589,-633.6996559,0.0002299,5]
[330489290,1719497448600,-779.9293452,0.0002299,5]
[330489291,1719497448612,-4120.1918914,0.0002299,5]
[330489292,1719497510659,4482.874,0.00010998,2]
[330489293,1719497576135,155.0,0.00013331,2]
[330489298,1719497804248,2585.45,0.00031027,30]
[330489299,1719497871521,2585.4,0.00031027,30]
[330489301,1719498010022,2585.4,0.0003097,30]
[330489308,1719498252664,653.09,0.0003097,30]
[330489333,1719498376438,52138.02154286,0.0003097,30]
[330489735,1719498633648,-1312.15,0.00011098,2]
[330489737,1719498633661,-1261.99215703,0.00011098,2]
[330489739,1719498633671,-3519.03052433,0.00013736,2]
[330489740,1719498633683,-11904.90945695,0.00013736,2]
[330489743,1719498633694,-155.0,0.00013889,2]
[330489744,1719498633704,-300.0,0.00013998,2]
[330489745,1719498633714,-150.0,0.00013998,2]
[330489746,1719498633723,-3944.69809722,0.00013999,2]
[330489747,1719498633734,-309.00220783,0.00013999,2]
[330489748,1719498633744,-166.95,0.00014731,2]
[330489749,1719498633753,-4018.22411523,0.00014899,2]
[330489750,1719498633765,-20682.56782203,0.00014899,2]
[330489751,1719498633775,-5000.0,0.00015,2]
[330489752,1719498633785,-190.0,0.00015351,2]
[330489753,1719498633795,-660.8093781,0.00016159,2]
[330489754,1719498633805,-150.99,0.00016172,2]
[330489755,1719498633823,-499.99,0.00016172,2]
[330489756,1719498633837,-6883.39,0.00016794,2]
[330489757,1719498633848,-420.31,0.00016794,2]
[330489758,1719498633858,-847.8946,0.00017434,2]
[330489759,1719498633868,-192.52,0.00017942,2]
[330489760,1719498633878,-200.0,0.00017978,2]
[330489761,1719498633888,-250.0,0.00017996,2]
[330489762,1719498633898,-2373.57182662,0.00017999,2]
[330489763,1719498633908,-323.15,0.00018029,2]
[330489764,1719498633918,-517.02,0.00018029,2]
[330489765,1719498633928,-5584.17,0.00018052,2]
[330489766,1719498633938,-159.78,0.00018061,2]
[330489767,1719498633948,-150.0,0.00018061,2]
[330489768,1719498633959,-2489.8869797,0.00018081,2]
[330489769,1719498633968,-250.0,0.00018113,2]
[330489770,1719498633979,-23900.0,0.00018122,2]
[330489771,1719498633990,-2023.3,0.00018205,2]
[330489772,1719498634000,-425.46,0.00018309,3]
[330489773,1719498634010,-168.18,0.00018371,2]
[330489774,1719498634021,-757.63760349,0.00018739,2]
[330489775,1719498634031,-650.83910401,0.00018759,2]
[330489776,1719498634043,-1000.0,0.00018834,2]
[330489777,1719498634053,-5167.0,0.00018835,2]
[330489778,1719498634064,-291.0,0.00018835,2]
[330489779,1719498634075,-2076.262,0.00018835,2]
[330489780,1719498634086,-202.05047868,0.00018864,2]
[330489781,1719498634096,-424.81512001,0.00018899,2]
[330489782,1719498634107,-155.59835696,0.00018899,2]
[330489783,1719498634117,-297.32648978,0.00018899,2]
[330489784,1719498634128,-155.0,0.00018899,2]
[330489785,1719498634138,-156.53784471,0.00018899,2]
[330489789,1719498634148,-155.8155577,0.00018919,2]
[330489791,1719498634159,-226.97665617,0.00018919,2]
[330489792,1719498634170,-420.31,0.00019058,2]
[330489793,1719498634181,-250.0,0.00019178,2]